bitfinex/quotes_ETHUSD_20241217
["timestamp","ask_amount","ask_price","bid_price","bid_amount"]
[1734409709450,0.7816,4006.0,4005.3,1.04149324]
[1734409709766,0.7816,4006.0,4005.2,1.04149324]
[1734409710528,0.7816,4006.0,4005.3,1.04149324]
[1734409712139,0.7816,4006.0,4005.3,4.04149324]
[1734409712450,0.7816,4006.0,4005.4,1.04149324]
[1734409713310,0.7816,4006.0,4005.5,1.04149324]
[1734409714256,0.7816,4006.0,4005.6,1.04149324]
[1734409715263,0.7816,4005.6,4005.2,1.04149324]
[1734409715557,0.02986123,4005.5,4005.2,1.04149324]
[1734409715787,8.95,4005.3,4005.0,1.04149324]
[1734409715990,0.02986123,4005.2,4004.8,1.04149324]
[1734409716278,9.7316,4005.1,4004.6,1.04149324]
[1734409716436,0.02986123,4005.0,4004.4,1.04149324]
[1734409716635,1.08370236,4004.9,4004.5,1.04149324]
[1734409716946,1.08370236,4004.9,4004.4,1.04149324]
[1734409717129,0.02986123,4004.8,4004.4,1.04149324]
[1734409717331,1.08370236,4004.9,4004.3,1.04149324]
[1734409717641,8.95,4004.6,4004.3,1.04149324]
[1734409717842,8.95,4004.6,4004.1,1.04149324]
[1734409718453,8.95,4004.6,4004.0,4.04149324]
[1734409718790,8.95,4004.6,4004.1,1.04149324]
[1734409718958,8.95,4004.6,4004.2,1.04149324]
[1734409719154,8.95,4004.6,4004.2,0.28210963]
[1734409719980,8.95,4004.6,4004.4,3.0]
[1734409720133,8.95,4004.6,4004.5,7.7453]
[1734409720338,8.95,4004.6,4004.5,7.107799]
[1734409720539,8.95,4004.6,4004.5,6.432535]
[1734409721081,8.95,4004.6,4004.5,7.359929]
[1734409721295,8.95,4004.6,4004.5,6.859929]
[1734409722488,8.95,4004.6,4004.2,5.10520287]
[1734409722787,8.95,4004.6,4004.2,2.10520287]
[1734409723095,8.95,4004.6,4004.3,7.08662863]
[1734409723238,9.7316,4005.0,4004.5,3.0]
[1734409723591,9.7316,4005.0,4004.3,1.32360287]
[1734409724186,8.95,4005.0,4004.5,1.04149324]
[1734409724401,8.95,4005.0,4004.4,1.04149324]
[1734409724573,8.95,4005.0,4004.3,5.00290143]
[1734409724739,8.95,4005.0,4004.4,1.04149324]
[1734409725343,8.95,4005.0,4004.3,5.00290143]
[1734409726275,9.7316,4005.2,4004.3,1.32360287]
[1734409726480,9.7316,4005.2,4004.3,0.28210963]
[1734409726783,9.7316,4005.2,4004.3,1.32360287]
[1734409726956,9.7316,4005.2,4004.3,0.28210963]
[1734409727654,9.7316,4005.2,4004.3,1.32360287]
[1734409728081,9.7316,4005.2,4004.3,0.28210963]
[1734409728381,0.02986123,4005.1,4004.2,1.82309324]
[1734409728583,0.02986123,4005.1,4004.0,4.04149324]
[1734409728751,0.02986123,4005.1,4004.0,1.04149324]
[1734409728752,0.7981,4005.0,4004.0,1.04149324]
[1734409728961,1.87321212,4005.0,4004.0,1.04149324]
[1734409729341,8.95,4004.9,4004.0,1.04149324]
[1734409729742,8.95,4004.9,4003.9,1.81299324]
[1734409730761,8.95,4004.9,4004.0,1.04149324]
[1734409730966,8.95,4004.9,4004.2,1.04149324]
[1734409731585,8.95,4004.9,4004.4,0.7715]
[1734409732291,0.7981,4005.3,4004.4,0.7715]
[1734409732292,8.95,4005.2,4004.4,0.7715]
[1734409732479,9.92481,4005.2,4004.4,0.7715]
[1734409735268,8.95,4005.1,4004.4,0.7715]
[1734409735705,8.95,4005.1,4004.4,1.81299324]
[1734409736081,8.95,4005.3,4004.4,1.81299324]
[1734409736392,8.95,4005.3,4004.7,0.7715]
[1734409736600,8.95,4005.3,4004.9,3.0]
[1734409736781,8.95,4005.3,4005.1,3.0]
[1734409736983,8.95,4005.3,4005.2,2.766462]
[1734409737170,8.95,4005.3,4004.7,0.7715]
[1734409739577,8.95,4005.3,4004.7,4.81299324]
[1734409739924,8.95,4005.3,4004.9,3.0]
[1734409740128,8.95,4005.3,4004.8,1.32360287]
[1734409740304,8.95,4005.3,4004.8,1.04149324]
[1734409740668,8.95,4005.3,4004.6,1.56223986]
[1734409740669,0.7722,4005.1,4004.6,4.04149324]
[1734409740916,0.7722,4005.1,4004.4,2.35513986]
[1734409740917,0.7722,4005.8,4004.8,3.55]
[1734409741122,0.7722,4006.5,4005.2,0.55]
[1734409741326,0.7722,4006.5,4005.2,4.59149324]
[1734409741488,0.7722,4006.3,4005.2,1.59149324]
[1734409741688,0.02986123,4006.2,4005.2,1.59149324]
[1734409742347,0.7662,4006.1,4004.9,1.04149324]
[1734409742638,8.95,4006.7,4004.7,2.36523986]
[1734409742639,0.7662,4005.8,4004.7,1.04149324]
[1734409742933,0.7662,4005.5,4004.6,1.04149324]
[1734409743091,0.7662,4005.2,4004.3,1.04149324]
[1734409743293,8.95,4005.6,4004.1,1.04149324]
[1734409743294,1.84164534,4005.0,4004.1,1.04149324]
[1734409743545,0.7662,4004.8,4004.0,0.3177763]
[1734409743841,8.95,4004.7,4004.0,0.3177763]
[1734409750342,8.95,4004.7,4003.8,1.84449324]
[1734409750496,0.97162,4004.6,4003.8,1.84449324]
[1734409750834,0.97162,4004.6,4003.6,1.65854844]
[1734409751226,0.97162,4004.6,4003.6,0.41408488]
[1734409752007,0.97162,4004.6,4003.6,0.3177763]
[1734409752008,0.7662,4004.4,4003.6,0.3177763]
[1734409752315,10.05162935,4004.3,4003.4,1.56223986]
[1734409752516,8.95,4004.3,4003.4,1.56223986]
[1734409753356,8.95,4004.3,4003.3,4.56223986]
[1734409753567,0.79606123,4004.2,4003.2,1.56223986]
[1734409753853,0.7662,4004.0,4003.1,0.44043455]
[1734409754054,0.02986123,4003.9,4003.1,2.00267441]
[1734409754259,0.02986123,4003.9,4003.1,0.44043455]
[1734409754416,0.7662,4004.0,4003.1,0.44043455]
[1734409754854,0.02986123,4003.9,4003.1,3.44043455]
[1734409755060,0.88310721,4003.9,4003.1,3.44043455]
[1734409755567,0.02986123,4003.9,4003.1,3.44043455]
[1734409755719,0.7662,4004.0,4003.1,3.56735474]
[1734409756264,8.95,4004.1,4003.2,1.88001616]
[1734409756265,7.15090244,4004.1,4003.2,1.88001616]
[1734409756470,7.15090244,4004.1,4003.4,0.8061]
[1734409756691,7.15090244,4004.1,4003.5,1.2165703]
[1734409756824,7.15090244,4004.1,4003.5,0.3177763]
[1734409759600,0.753,4004.2,4003.5,0.3177763]
[1734409760737,0.753,4004.2,4003.6,1.04403574]
[1734409761170,0.753,4004.2,4003.7,1.04403574]
[1734409762164,0.7637,4004.6,4003.8,8.24969863]
[1734409762494,0.7637,4004.6,4004.0,1.85163574]
[1734409762674,7.91460244,4004.9,4004.0,1.85163574]
[1734409763081,7.91460244,4004.9,4004.1,1.04403574]
[1734409763756,7.91460244,4004.9,4004.1,4.04403574]
[1734409763960,7.91460244,4004.9,4004.1,1.04403574]
[1734409764413,7.91460244,4004.9,4004.2,1.04403574]
[1734409765065,7.15090244,4004.9,4004.2,1.04403574]
[1734409765362,0.7637,4005.2,4004.4,0.8076]
[1734409765558,7.15090244,4005.4,4004.4,4.85163574]
[1734409765764,7.15090244,4005.4,4004.5,1.04403574]
[1734409766790,0.02986123,4005.3,4004.5,1.04403574]
[1734409768107,0.02986123,4005.3,4004.4,4.85163574]
[1734409768890,0.02986123,4005.3,4004.4,1.85163574]
[1734409770331,7.15090244,4005.4,4004.5,4.04403574]
[1734409770688,7.15090244,4005.4,4004.6,1.04403574]
[1734409771244,7.15090244,4005.4,4004.7,1.04403574]
[1734409771739,7.15090244,4005.4,4004.6,1.04403574]
[1734409772190,7.15090244,4005.4,4004.7,1.04403574]
[1734409773144,0.7637,4005.5,4004.9,1.04403574]
[1734409774395,0.7637,4005.5,4004.8,1.04403574]
[1734409778062,7.91460244,4005.8,4005.0,0.8076]
[1734409779429,8.70606268,4005.8,4005.0,0.8076]
[1734409779945,0.7637,4005.8,4005.0,0.8076]
[1734409780152,0.7637,4006.1,4005.0,2.14925611]
[1734409780324,0.7637,4006.1,4005.1,1.04403574]
[1734409781430,0.7637,4006.1,4005.2,1.04403574]
[1734409782264,0.7637,4006.1,4005.3,1.85163574]
[1734409783483,0.5,4006.2,4005.3,1.85163574]
[1734409783785,0.5,4006.2,4005.3,0.8076]
[1734409789279,0.5,4006.2,4005.3,0.80023308]
[1734409789593,0.5,4006.2,4005.3,4.52396972]
[1734409789912,0.5,4006.2,4005.4,0.57496339]
[1734409790201,0.5,4006.2,4005.4,0.55]
[1734409790586,0.5,4006.2,4005.6,3.55]
[1734409790890,0.5,4006.2,4005.8,3.0]
[1734409791136,0.5,4006.2,4005.9,2.088156]
[1734409791445,0.5,4006.2,4005.9,3.0]
[1734409791743,0.5,4006.2,4005.5,0.55]
[1734409792037,0.5,4006.2,4005.7,4.3174]
[1734409792394,0.5,4006.2,4005.7,1.3174]
[1734409792898,0.5,4006.2,4005.9,3.0]
[1734409793096,0.5,4006.2,4005.7,1.3174]
[1734409793306,0.5,4006.2,4005.9,3.0]
[1734409793532,0.5,4006.2,4005.7,1.3174]
[1734409795307,0.5,4006.2,4005.7,1.55972918]
[1734409799176,0.5,4006.2,4005.2,1.04403574]
[1734409799177,0.83306123,4006.1,4004.9,4.81143574]
[1734409799339,0.8145,4006.0,4004.9,0.89403685]
[1734409799869,0.8145,4006.0,4004.9,1.19165722]
[1734409800170,0.8145,4006.0,4005.0,0.1314295]
[1734409800671,0.8145,4006.0,4005.1,1.62415387]
[1734409800872,0.8145,4006.0,4005.1,4.62415387]
[1734409801241,0.8145,4006.0,4005.2,0.55]
[1734409801620,0.8145,4006.0,4005.2,1.59403574]
[1734409801854,0.8145,4006.0,4005.3,0.65853255]
[1734409803666,0.02986123,4005.9,4005.1,1.04403574]
[1734409803871,0.02986123,4005.9,4004.9,1.93807259]
[1734409804166,0.02986123,4005.9,4004.9,2.50866626]
[1734409804368,0.8145,4005.8,4004.9,1.17067259]
[1734409804932,0.8145,4005.8,4005.0,1.04403574]
[1734409805130,0.8145,4005.8,4005.1,1.04403574]
[1734409805389,0.8145,4005.8,4005.0,4.04403574]
[1734409805544,0.8145,4005.8,4005.1,1.64708902]
[1734409805723,0.8145,4005.8,4005.2,1.04403574]
[1734409806183,0.8145,4005.8,4005.1,4.04403574]
[1734409806474,0.8145,4005.8,4005.2,1.04403574]
[1734409807567,0.8145,4005.8,4005.2,4.04403574]
[1734409807726,0.8145,4005.8,4005.3,4.04403574]
[1734409808130,7.15090244,4006.0,4005.3,4.04403574]
[1734409808677,7.15090244,4006.0,4005.4,1.04403574]
[1734409809646,7.15090244,4006.0,4005.5,22.52351974]
[1734409809846,7.15090244,4006.0,4005.6,16.51538574]
[1734409810053,7.15090244,4006.0,4005.8,3.0]
[1734409810266,7.15090244,4006.0,4005.9,12.131633]
[1734409810466,0.8145,4006.1,4005.9,9.131633]
[1734409810780,0.8145,4006.1,4005.6,4.04403574]
[1734409811535,0.8145,4006.1,4005.7,1.04403574]
[1734409813249,0.8145,4006.1,4005.6,1.04403574]
[1734409813764,0.8145,4006.1,4005.7,1.04403574]
[1734409814137,0.8145,4006.1,4005.6,1.04403574]
[1734409815452,0.8145,4006.1,4005.7,1.04403574]
[1734409816064,0.8145,4006.1,4005.6,4.04403574]
[1734409816379,0.8145,4006.1,4005.7,1.04403574]
[1734409817377,0.02986123,4006.0,4005.5,1.04403574]
[1734409817551,0.7715,4005.9,4005.2,1.04403574]
[1734409817764,0.7715,4005.7,4005.2,1.04403574]
[1734409819481,7.15090244,4005.6,4005.2,1.04403574]
[1734409820853,7.94314268,4005.6,4005.2,1.04403574]
[1734409821058,7.15090244,4005.4,4005.0,1.04403574]
[1734409821383,0.7715,4005.1,4004.6,1.04403574]
[1734409821871,0.7715,4005.1,4004.4,1.85986023]
[1734409821872,0.7715,4005.1,4004.5,1.04403574]
[1734409822281,0.7715,4005.1,4004.4,1.34165611]
[1734409822857,0.02986123,4005.0,4004.4,1.34165611]
[1734409823056,0.7715,4005.1,4004.4,1.34165611]
[1734409823257,0.80136123,4005.0,4004.4,0.29762037]
[1734409824597,0.7715,4005.0,4004.4,0.29762037]
[1734409824819,7.15090244,4004.8,4004.1,4.04403574]
[1734409825020,0.7715,4004.7,4004.1,1.04403574]
[1734409825223,0.02986123,4004.6,4004.1,1.04403574]
[1734409825518,0.7715,4004.7,4003.9,1.04403574]
[1734409825741,0.7715,4004.7,4004.0,0.29762037]
[1734409826380,7.92240244,4004.7,4004.0,0.29762037]
[1734409827377,7.94314268,4004.7,4004.0,0.29762037]
[1734409827580,7.94314268,4004.7,4003.7,3.12525055]
[1734409827581,7.15090244,4004.5,4003.7,0.12220977]
[1734409827813,0.7715,4004.3,4003.5,1.04403574]
[1734409828010,1.56672637,4004.3,4003.3,1.46693208]
[1734409828435,0.02986123,4004.2,4003.3,0.29762037]
[1734409828726,0.7715,4004.1,4003.3,0.29762037]
[1734409830233,0.02986123,4004.0,4003.3,0.29762037]
[1734409830383,0.7711,4003.9,4003.3,3.0]
[1734409830585,0.7711,4003.9,4003.1,0.1279039]
[1734409830915,0.7711,4003.8,4002.9,0.29762037]
[1734409831087,0.02986123,4003.7,4002.9,0.29762037]
[1734409831424,0.02986123,4003.7,4002.9,0.42415973]
[1734409831625,0.7711,4003.6,4002.9,0.42415973]
[1734409831781,0.7711,4003.6,4002.9,0.55019495]
[1734409831983,0.7711,4003.6,4002.9,0.93346422]
[1734409832976,0.7711,4003.6,4002.9,0.807429]
[1734409833180,0.02986123,4003.5,4002.9,0.42415973]
[1734409834232,0.00721616,4003.4,4002.9,0.42415973]
[1734409834739,0.7711,4003.3,4002.6,0.29762037]
[1734409836391,0.00721616,4003.4,4002.6,0.29762037]
[1734409836793,0.00721616,4003.4,4002.4,0.12448831]
[1734409836794,7.1581186,4003.4,4002.4,0.12448831]
[1734409837035,7.1581186,4003.4,4002.3,0.55]
[1734409837188,7.1581186,4003.4,4002.8,3.0]
[1734409837831,7.1581186,4003.4,4002.4,0.14377957]
[1734409838503,0.02986123,4003.3,4002.2,0.88779566]
[1734409838836,0.02986123,4003.3,4002.1,0.12638413]
[1734409839055,7.1581186,4003.4,4002.1,0.12638413]
[1734409839343,0.7711,4003.3,4002.7,3.0]
[1734409839833,0.7711,4003.3,4002.1,0.12638413]
[1734409840611,7.15090244,4003.2,4002.1,0.12638413]
[1734409841061,7.15090244,4003.0,4001.8,0.7654]
[1734409841380,0.50453927,4003.2,4001.5,0.12637625]
[1734409841381,0.7711,4002.7,4001.5,0.12637625]
[1734409841654,0.7711,4002.7,4001.4,0.7654]
[1734409841655,0.7711,4002.5,4001.4,0.7654]
[1734409841863,0.7711,4002.5,4001.3,0.12711364]
[1734409842060,7.15090244,4002.4,4001.1,0.88861439]
[1734409842445,7.15090244,4002.4,4001.2,0.7919]
[1734409842446,6.16088717,4002.4,4001.2,0.7919]
[1734409842760,6.16088717,4002.4,4001.3,0.7919]
[1734409842915,0.7615,4002.9,4001.4,3.60423488]
[1734409843111,0.7615,4002.9,4001.4,1.04809567]
[1734409843311,0.02986123,4002.8,4001.4,1.04809567]
[1734409843533,0.02986123,4002.8,4001.5,0.55]
[1734409843738,0.7615,4002.9,4001.5,0.55]
[1734409844214,0.7615,4002.9,4001.7,0.55]
[1734409844562,0.7615,4002.9,4002.2,3.0]
[1734409844766,0.7615,4002.9,4001.8,0.18919]
[1734409844916,0.7615,4002.9,4002.2,3.0]
[1734409845316,0.7615,4002.9,4001.8,0.18919]
[1734409845761,0.7615,4002.9,4002.2,3.0]
[1734409846561,0.7615,4002.9,4001.8,0.18919]
[1734409846562,0.02986123,4002.8,4001.8,0.18919]
[1734409846774,0.7581,4002.7,4001.8,0.18919]
[1734409846916,0.02986123,4002.6,4002.2,3.0]
[1734409847779,0.02986123,4002.6,4001.8,0.18919]
[1734409848243,0.7581,4002.7,4002.1,3.0]
[1734409848831,0.7581,4002.7,4001.8,0.18919]
[1734409849232,0.7581,4002.7,4002.1,3.0]
[1734409849477,0.7581,4002.7,4002.1,3.318919]
[1734409850290,0.7581,4002.7,4002.1,0.318919]
[1734409850594,0.7581,4002.7,4002.1,3.0]
[1734409851355,0.7581,4002.7,4001.8,0.18919]
[1734409851763,0.7581,4002.7,4002.1,3.0]
[1734409852353,0.7581,4002.7,4001.8,0.31579302]
[1734409852555,0.7581,4002.7,4002.1,3.0]
[1734409854193,0.7581,4002.7,4001.8,0.31579302]
[1734409854395,0.7581,4002.7,4002.1,3.0]
[1734409855149,0.7581,4002.7,4001.8,0.12660302]
[1734409855402,0.7581,4002.7,4002.1,3.0]
[1734409856267,0.7581,4002.7,4001.8,0.1468503]
[1734409856818,0.7581,4002.7,4002.1,3.0]
[1734409857386,0.7581,4002.7,4001.8,0.1468503]
[1734409857794,0.7581,4002.7,4002.1,3.0]
[1734409858508,0.7581,4002.7,4001.8,0.1468503]
[1734409858801,0.7581,4002.7,4002.1,3.0]
[1734409859002,0.7581,4002.7,4001.8,0.27287409]
[1734409859377,0.7581,4002.7,4002.1,3.0]
[1734409859576,0.7581,4002.7,4001.6,0.9189163]
[1734409859577,0.7879,4002.5,4001.6,0.1270163]
[1734409859814,0.7879,4002.5,4000.3,2.08298648]
[1734409859815,0.7879,4002.2,4001.0,0.7918]
[1734409860027,0.81776123,4002.1,4000.4,0.7918]
[1734409860318,0.7879,4001.9,4000.4,0.7918]
[1734409861409,0.7879,4001.9,4000.5,0.55]
[1734409861989,6.16088717,4002.2,4001.0,0.55]
[1734409862277,0.7879,4002.8,4001.6,0.55]
[1734409862485,0.7879,4002.8,4001.7,0.51786951]
[1734409862991,0.02986123,4002.7,4001.7,0.51786951]
[1734409863203,0.02986123,4002.7,4001.7,0.32868951]
[1734409863368,0.7879,4002.8,4001.7,0.32868951]
[1734409863564,0.02986123,4002.7,4001.7,0.45498228]
[1734409863807,0.02986123,4002.7,4001.2,0.7918]
[1734409863808,0.7879,4002.6,4001.2,0.7918]
[1734409864069,0.7879,4002.4,4001.2,0.7918]
[1734409864369,0.97739438,4002.4,4001.2,0.7918]
[1734409864721,0.7879,4001.9,4001.2,0.7918]
[1734409864898,0.02986123,4001.8,4001.2,0.7918]
[1734409865721,0.02986123,4001.8,4000.9,0.12630105]
[1734409865867,0.7879,4001.9,4000.9,0.12630105]
[1734409866064,5.95742963,4001.6,4000.2,0.29355591]
[1734409866280,0.83346123,4001.5,4000.3,0.28998315]
[1734409866514,0.8036,4001.5,4000.3,0.28998315]
[1734409866677,0.8036,4001.2,4000.2,0.12708352]
[1734409866998,0.8036,4001.2,3999.7,0.29785618]
[1734409867511,0.8036,4001.2,3999.6,1.04403574]
[1734409867512,0.8036,4001.2,3999.9,0.1271512]
[1734409867870,0.8036,4001.2,4000.0,0.02499785]
[1734409868071,0.8036,4001.2,4000.0,0.61640994]
[1734409868383,0.8036,4001.2,4000.1,0.55]
[1734409868579,0.8036,4001.2,4000.3,0.55]
[1734409869318,5.95742963,4001.3,4000.3,0.55]
[1734409869499,0.8036,4001.5,4000.7,0.55]
[1734409870902,0.3737447,4003.6,4000.6,4.83583574]
[1734409870903,0.8036,4001.8,4000.9,3.55]
[1734409871069,0.8036,4001.8,4001.0,0.0249906]
[1734409871273,0.8036,4001.8,4001.2,0.55]
[1734409871996,0.8036,4001.8,4000.9,1.04403574]
[1734409872192,5.95742963,4002.2,4001.1,3.0]
[1734409872193,0.8036,4002.1,4001.1,3.0]
[1734409872389,0.8036,4002.1,4001.2,0.55]
[1734409872621,0.8036,4002.1,4001.2,1.59403574]
[1734409872853,2.34220169,4003.4,4001.2,1.59403574]
[1734409872854,0.8036,4002.4,4001.4,2.38583574]
[1734409873015,0.00721616,4003.4,4001.6,1.59403574]
[1734409873016,6.76102963,4003.2,4001.6,1.59403574]
[1734409873400,6.76102963,4003.2,4001.8,1.04403574]
[1734409873952,5.95742962,4003.1,4002.1,0.55]
[1734409874260,5.95742962,4003.1,4002.1,4.59403574]
[1734409874399,5.95742962,4003.1,4002.2,0.69854592]
[1734409874803,0.8036,4003.2,4002.3,0.55]
[1734409875045,5.95742962,4003.3,4002.3,1.61901874]
[1734409875208,0.00721616,4003.4,4002.5,4.59403574]
[1734409875404,0.00721616,4003.4,4002.6,1.04403574]
[1734409875649,0.00721616,4003.4,4002.7,0.02498129]
[1734409875857,0.00721616,4003.4,4002.7,5.35473574]
[1734409876440,0.00721616,4003.4,4002.7,5.37971537]
[1734409876835,0.00721616,4003.4,4002.7,5.35473574]
[1734409877168,0.00721616,4003.4,4002.9,0.55]
[1734409877321,0.00721616,4003.4,4003.0,1.89444635]
[1734409877526,0.00721616,4003.4,4003.1,14.69962074]
[1734409877856,0.00721616,4003.4,4003.2,8.20091974]
[1734409878053,0.00721616,4003.4,4003.3,9.986643]
[1734409878366,0.00721616,4003.4,4003.3,12.34137874]
[1734409878568,0.00721616,4003.4,4003.3,13.81678166]
[1734409879127,0.00721616,4003.4,4003.3,5.77854547]
[1734409879449,0.00721616,4003.4,4003.3,1.3107]
[1734409879657,0.00721616,4003.4,4003.2,0.55]
[1734409880871,0.00721616,4003.4,4003.3,4.247974]
[1734409881220,0.00721616,4003.4,4003.3,7.247974]
[1734409882770,0.00721616,4003.4,4003.2,1.16613795]
[1734409882771,0.00721616,4003.4,4003.2,0.55]
[1734409883092,0.00721616,4003.4,4003.3,5.571231]
[1734409883238,0.00721616,4003.4,4003.3,0.55]
[1734409883441,0.00721616,4003.4,4003.3,8.79595]
[1734409883738,0.00721616,4003.4,4003.3,8.24595]
[1734409884091,0.00721616,4003.4,4002.8,0.7607]
[1734409885454,0.8036,4003.3,4002.4,4.16666377]
[1734409885656,0.8036,4003.3,4002.4,1.04403574]
[1734409885857,0.8036,4003.3,4002.3,1.92685058]
[1734409886068,0.8036,4003.3,4002.4,3.57429109]
[1734409886389,0.8036,4003.3,4002.3,2.22470676]
[1734409886590,0.8036,4003.3,4002.4,1.89189192]
[1734409886898,0.00721616,4003.4,4002.6,0.55]
[1734409887059,0.00721616,4003.4,4003.2,0.7607]
[1734409887242,0.00721616,4003.4,4003.3,0.84785618]
[1734409887447,0.00721616,4003.4,4003.3,1.11311537]
[1734409887685,0.00721616,4003.4,4003.3,22.09402137]
[1734409887844,0.00721616,4003.4,4003.3,20.16458337]
[1734409888175,0.00721616,4003.4,4003.3,20.27394211]
[1734409888376,0.00721616,4003.4,4003.3,20.27039989]
[1734409888687,0.00721616,4003.4,4003.3,20.79214623]
[1734409888892,0.00721616,4003.4,4003.3,21.08570214]
[1734409889446,0.00721616,4003.4,4003.3,19.52346228]
[1734409890608,0.00721616,4003.4,4003.3,20.2699262]
[1734409890886,0.00721616,4003.4,4003.3,19.22990637]
[1734409891423,0.8036,4004.8,4003.5,0.55]
[1734409891603,0.8036,4004.8,4003.7,3.55]
[1734409891921,0.8036,4004.8,4003.7,0.55]
[1734409892233,2.83498553,4006.2,4003.7,0.55]
[1734409892234,6.76102962,4005.5,4003.9,3.55]
[1734409892367,6.76102962,4005.5,4004.1,0.55]
[1734409892571,0.67610296,4005.4,4004.1,0.55]
[1734409893015,0.67610296,4005.4,4004.1,0.57496928]
[1734409893223,6.76102962,4005.5,4004.1,0.87282546]
[1734409893442,0.8036,4005.5,4004.3,0.55]
[1734409893738,0.8036,4005.5,4004.4,0.02496712]
[1734409894165,0.8036,4005.5,4004.3,0.57496729]
[1734409894527,0.8036,4005.5,4004.5,0.55]
[1734409895870,0.8036,4005.5,4004.4,0.55]
[1734409899935,0.8036,4005.5,4004.2,1.05855618]
[1734409899936,0.02986123,4005.4,4004.2,0.7607]
[1734409900156,0.8036,4005.3,4003.9,0.7607]
[1734409900679,5.95742962,4005.2,4003.9,0.7607]
[1734409900877,6.63353258,4005.2,4004.0,0.02497124]
[1734409901204,6.63353258,4005.2,4003.9,0.7607]
[1734409901422,6.63353258,4005.2,4004.0,0.55]
[1734409901803,5.95742962,4005.1,4005.0,3.0]
[1734409901995,6.70114288,4005.1,4005.0,3.0]
[1734409902291,0.74371326,4005.1,4005.0,3.0]
[1734409902493,0.8036,4005.3,4005.0,3.0]
[1734409902707,0.8036,4005.3,4004.1,0.02496905]
[1734409902911,0.8036,4005.3,4004.1,0.32282523]
[1734409903119,0.8036,4005.3,4005.0,3.0]
[1734409903424,5.95742962,4005.5,4004.3,0.55]
[1734409903594,5.95742962,4005.5,4005.3,3.0]
[1734409903973,5.95742962,4005.5,4004.5,0.55]
[1734409904083,5.95742962,4005.5,4005.3,3.0]
[1734409905398,5.95742962,4005.5,4004.7,0.55]
[1734409905735,5.95742962,4005.5,4005.3,3.0]
[1734409905901,6.55317258,4005.5,4004.7,0.55]
[1734409906299,6.55317258,4005.5,4005.3,3.0]
[1734409906634,0.59574296,4005.5,4004.7,0.55]
[1734409906832,5.95742962,4005.8,4004.7,0.55]
[1734409906833,5.95742962,4005.8,4005.3,3.0]
[1734409907324,5.95742962,4005.8,4004.7,0.55]
[1734409907638,5.95742962,4005.8,4005.7,3.0]
[1734409908899,5.95742962,4005.8,4005.0,0.8248]
[1734409909321,5.95742962,4005.8,4005.7,3.0]
[1734409909518,5.95742962,4005.8,4005.0,0.8248]
[1734409909519,6.63353258,4005.8,4005.0,0.8248]
[1734409909834,5.95742962,4005.8,4005.1,0.55]
[1734409909988,5.95742962,4005.8,4005.7,3.0]
[1734409910347,5.95742962,4005.8,4005.1,0.55]
[1734409910558,5.95742962,4005.8,4005.7,3.0]
[1734409911329,5.95742962,4005.8,4005.1,0.55]
[1734409911563,5.95742962,4005.8,4005.7,3.0]
[1734409911720,5.95742962,4005.8,4005.1,0.55]
[1734409912263,5.95742962,4005.8,4005.7,3.0]
[1734409912552,5.95742962,4005.8,4005.1,0.55]
[1734409912703,0.8036,4005.9,4005.7,3.0]
[1734409912904,0.8036,4005.9,4005.1,0.55]
[1734409913347,0.8036,4005.9,4005.7,3.0]
[1734409914265,0.8036,4005.9,4005.1,0.55]
[1734409914554,0.8036,4005.9,4005.1,0.84785618]
[1734409914851,0.8036,4005.9,4005.7,3.0]
[1734409915407,0.8036,4005.9,4005.1,0.84785618]
[1734409916015,0.5,4006.2,4005.3,0.55]
[1734409916016,1.3036,4006.2,4005.3,0.55]
[1734409916215,1.3036,4006.2,4005.7,3.0]
[1734409917149,0.83346123,4006.1,4005.7,3.0]
[1734409917335,0.83346123,4006.1,4005.4,0.29785618]
[1734409917665,0.96680735,4006.1,4005.7,3.0]
[1734409917866,0.96680735,4006.1,4005.0,0.12373168]
[1734409918046,0.96680735,4006.1,4004.6,0.8248]
[1734409918244,0.96680735,4006.1,4004.6,1.12265618]
[1734409918415,0.96680735,4006.1,4005.4,3.0]
[1734409918764,0.8036,4005.9,4004.8,0.12325782]
[1734409919061,0.8036,4005.9,4004.9,0.29785618]
[1734409919373,0.83346123,4005.8,4004.9,0.29785618]
[1734409919572,0.83346123,4005.8,4005.4,3.0]
[1734409919718,0.8036,4005.8,4004.9,0.29785618]
[1734409920119,0.52986123,4006.2,4004.9,0.29785618]
[1734409920120,0.8036,4005.6,4004.9,0.29785618]
[1734409920363,0.02986123,4005.5,4004.9,0.29785618]
[1734409920568,0.8036,4005.6,4004.9,0.29785618]
[1734409922153,0.8036,4005.6,4005.4,3.0]
[1734409922538,0.8036,4005.6,4004.9,0.29785618]
[1734409922738,0.8036,4005.6,4005.4,3.0]
[1734409922976,0.8036,4005.6,4004.9,0.29785618]
[1734409923324,0.8036,4005.6,4005.4,3.0]
[1734409923527,0.8036,4005.6,4004.9,1.34341209]
[1734409925523,6.76102962,4005.9,4005.0,0.86852354]
[1734409925723,5.95742962,4005.9,4005.2,0.55]
[1734409925969,5.95742962,4005.9,4005.3,0.61637512]
[1734409926262,5.95742962,4005.9,4005.4,5.19779301]
[1734409926470,5.95742962,4005.9,4005.4,2.19779301]
[1734409927779,0.5,4006.2,4005.5,0.29785618]
[1734409928089,0.5,4006.2,4005.6,0.55]
[1734409928388,0.5,4006.2,4006.0,0.55]
[1734409928524,0.5,4006.2,4006.1,13.6622305]
[1734409928729,0.8036,4007.7,4006.2,3.55]
[1734409929034,0.8036,4007.7,4006.4,0.55]
[1734409930041,0.8036,4007.7,4006.4,1.59117344]
[1734409930442,0.8036,4007.7,4006.6,0.55]
[1734409930654,0.8036,4007.7,4006.5,0.752]
[1734409930655,0.8036,4007.7,4006.8,0.55]
[1734409936970,0.8036,4007.7,4006.5,3.752]
[1734409936971,0.02986123,4007.6,4006.5,0.752]
[1734409937291,0.7539,4007.5,4006.4,0.12804736]
[1734409937450,0.7539,4007.5,4006.2,0.7871]